[Event "Romanian Rapid Open 2022"]
[Site "Sebes"]
[Date "2022.12.02"]
[Round "6.39"]
[White "Tatar, Marius Lucian"]
[Black "Ambru, Dan-Calin"]
[Result "0-1"]
[ECO "B51"]
[WhiteElo "1405"]
[BlackElo "1957"]
[Annotator "TA"]
[PlyCount "146"]
[EventDate "2022.12.02"]
[EventType "rapid"]
[EventCountry "ROU"]
[SourceTitle "playchess.com"]
[Source "ChessBase"]
[SourceQuality "1"]
[TimeControl "600+5"]

{[%evp 16,145,19,26,24,15,16,2,22,-8,27,-26,0,-50,-23,-35,-52,-159,-169,-160,-168,-226,-219,-223,-185,-144,-113,-113,-113,-121,-104,-170,-130,-177,-87,-88,-94,-182,-175,-327,-246,-231,-174,-289,-297,-373,-348,-349,-354,-374,-388,-447,-436,-691,-623,-689,-705,-741,-694,-651,-620,-747,-740,-9750,-9931,-6334,-9652,-9029,-9029,-4196,-5106,-2823,-2544,-11688,-11780,-11719,-10855,-9857,-9857,-7768,-7056,-7056,-4618,-3827,-1939,-6700,-5937,-5704,-5273,-29975,-4606,-29975,-29976,-29976,-2633,-29977,-29978,-29978,-29979,-29978,-29979,-29980,-29980,-29984,-29985,-29985,-29982,-29983,-29984,-29986,-29987,-29987,-29984,-29987,-29988,-29989,-29990,-29988,-29989,-29989,-29990,-29991,-29992,-29994,-29995,-29995,-29996,-29996,-29997,-29998,-29999,-29999]} 1. e4 {[%emt 0:00:05]} c5 {[%emt 0:00:05]} 2. Nf3 {[%emt 0:00:05]} Nc6 {[%emt 0:00:05]} 3. Bb5 {[%emt 0:00:05]} d6 {[%emt 0:00:05]} 4. O-O {[%emt 0:00:07]} Bd7 {[%emt 0:00:01]} 5. Re1 {[%emt 0:00:14]} Nf6 {[%emt 0:00:01]} 6. c3 {[%emt 0:00:02]} a6 {[%emt 0:00:01]} 7. Bf1 {[%emt 0:00:04]} Bg4 {[%emt 0:00:02]} 8. h3 {[%emt 0:00:07]} Bxf3 {[%emt 0:00:02]} 9. Qxf3 {[%emt 0:00:02]} e6 $1 {[%emt 0:00:01][%mdl 4] outshines the older 9...g6. B51: Sicilian: Moscow Variation (3 Bb5+) without 3...Bd7.} 10. Qd1 {[%emt 0:01:39]} Be7 {[%emt 0:00:02]} 11. d4 {[%emt 0:00:01]} d5 {[%emt 0:00:01] The position is equal.} 12. e5 {[%emt 0:00:06] [#]} Nd7 $146 {[%emt 0:00:01]} ({Predecessor:} 12... Ne4 13. Be3 O-O 14. Na3 cxd4 15. cxd4 Bb4 16. Qg4 Bxe1 17. Rxe1 f5 18. exf6 Qxf6 {½-½ (49) Schmaltz,R (2460)-Inkiov,V (2418) Germany 2022}) 13. Qg4 {[%emt 0:00:10]} (13. Na3 $142) 13... g6 {[%emt 0:01:34]} (13... g5 $5 {[%cal Rh7h5]}) 14. Bh6 {[%emt 0:00:15]} ({White should try} 14. Na3 $11) 14... cxd4 {[%emt 0:00:10]} 15. cxd4 {[%emt 0:00:02]} Qb6 {[%emt 0:00:01][%csl LRb2,LRd4]} 16. Nc3 {[%emt 0:00:39]} (16. Be3 $1 $15) 16... Qxd4 $17 {[%emt 0:00:19]} (16... Nxd4 17. Be3 $18) (16... Qxb2 17. Rac1 Bb4 18. Re2 $11) 17. Qg3 {[%emt 0:00:20]} Bh4 {[%emt 0:00:50]} (17... Ndxe5 18. Rad1 Bh4 19. Rxd4 Bxg3 20. Ra4 $16 (20. fxg3 Nxd4 21. Rxe5 f6 $15)) 18. Qe3 {[%emt 0:01:57]} (18. Qf3 $142) 18... Qxe3 $19 {[%emt 0:00:03]} (18... Ndxe5 19. Qxd4 $16) (18... Qxe5 19. Qxe5 Ndxe5 20. Bg7 $14) 19. Rxe3 {[%emt 0:00:02]} d4 {[%emt 0:00:04]} (19... Ndxe5 20. Rxe5 (20. Bg7 d4 $15) 20... Nxe5 21. Bg7 $15) 20. Re4 {[%emt 0:00:01]} Bxf2+ {[%emt 0:00:58]} (20... dxc3 21. Rxh4 cxb2 22. Rb1 $15) 21. Kxf2 {[%emt 0:00:02]} dxc3 {[%emt 0:00:01]} 22. bxc3 {[%emt 0:00:01]} O-O-O {[%emt 0:00:04]} ({Don't take} 22... Ndxe5 23. Bg7 O-O-O 24. Bxe5 Nxe5 25. Rxe5 $16) 23. Rb1 {[%emt 0:00:30]} (23. Re3 $17 {was necessary.}) 23... Nc5 {[%emt 0:00:29]} (23... Ncxe5 24. Bg7 $11) 24. Rc4 {[%emt 0:00:19]} (24. Rh4 $17) 24... Nd3+ {[%emt 0:00:20]} (24... Rd5 $19 {and Black stays clearly on top.} 25. Kg1 (25. Be3 $2 Nd7 $17) 25... Rg8) 25. Bxd3 $17 {[%emt 0:00:05]} Rxd3 {[%emt 0:00:01]} 26. Bg7 {[%emt 0:00:16]} (26. Rf1 $17) 26... Rhd8 {[%emt 0:00:09] Hoping for ...Rd2+.} 27. Bf6 $2 {[%emt 0:00:19]} (27. Re1) 27... R8d5 {[%emt 0:00:01]} 28. a4 {[%emt 0:00:56]} Kc7 {[%emt 0:00:21]} 29. Rh4 {[%emt 0:01:10]} (29. Bg7 $142) 29... h5 $19 {[%emt 0:00:24]} ({Weaker is} 29... Nxe5 30. Rxh7 Nd7 31. Be7 $19 (31. Rxf7 $2 {is the wrong capture.} Rf5+ 32. Ke2 Rdd5 $19)) 30. Rc4 {[%emt 0:00:02]} b5 {[%emt 0:00:01]} 31. axb5 {[%emt 0:00:07]} axb5 {[%emt 0:00:01][%cal Ba6b5,Bb5b4,Bb4b3][%mdl 32]} 32. Re4 {[%emt 0:00:09]} Rxc3 {[%emt 0:00:02]} 33. h4 {[%emt 0:00:33]} b4 {[%emt 0:00:20]} 34. g4 {[%emt 0:00:22]} (34. Bg5 $142) 34... hxg4 {[%emt 0:00:15]} 35. Rxg4 {[%emt 0:00:02]} Rd2+ {[%emt 0:00:11]} 36. Kg1 {[%emt 0:00:14]} b3 {[%emt 0:00:10] [#] White must now prevent ...b2.} 37. Bg5 {[%emt 0:00:38] Inhibits b2.} Rdd3 {[%emt 0:00:27]} 38. Rf4 {[%emt 0:00:29]} Nxe5 {[%emt 0:00:10] And now ...Nf3+ would win.} 39. Rf6 {[%emt 0:00:26]} Nf3+ {[%emt 0:00:16]} 40. Kf1 {[%emt 0:00:42]} Nxg5 {[%emt 0:05:16]} 41. hxg5 {[%emt 0:00:00]} Rf3+ {[%emt 0:00:00]} 42. Rxf3 {[%emt 0:00:00]} Rxf3+ {[%emt 0:00:00][%mdl 4096] Endgame KR-KR} 43. Kg2 {[%emt 0:00:00]} Rf5 {[%emt 0:00:00]} 44. Rxb3 {[%emt 0:00:00]} Rxg5+ {[%emt 0:00:00]} 45. Kf3 {[%emt 0:00:04]} Rf5+ {[%emt 0:00:00]} 46. Ke4 {[%emt 0:00:04]} Kd6 {[%emt 0:00:00]} 47. Rd3+ {[%emt 0:00:04]} Ke7 {[%emt 0:00:00]} 48. Ra3 {[%emt 0:00:09]} Kf6 {[%emt 0:00:00] [#] ...g5 is the strong threat.} 49. Ra7 {[%emt 0:00:03]} Rh5 {[%emt 0:00:00]} 50. Kf4 {[%emt 0:00:04]} Rh4+ {[%emt 0:00:00]} 51. Kg3 {[%emt 0:00:02]} g5 {[%emt 0:00:00] ( -> ...Rf4)} 52. Rc7 {[%emt 0:00:09]} Ra4 {[%emt 0:00:00]} (52... Rf4 $142 53. Kh2 e5 54. Rc6+ Kf5 55. Kg1 e4 56. Kh2 Kg4 57. Rc3 Rf2+ 58. Kh1 Kf4 59. Kg1 Rf3 60. Rc1 f5 61. Kh2 g4 62. Rc2 e3 63. Kg2 Kg5 64. Rc5 Kh4 65. Rc2 f4 66. Kg1 g3 67. Rg2 Rf2 68. Rxf2 gxf2+ 69. Kg2 Kg4 70. Kf1 Kg3 71. Ke2 f3+ 72. Kd3 e2 73. Ke4 f1=Q 74. Ke5 e1=Q+ 75. Kd6 Qc4 76. Kd7 Qee6+ 77. Kd8 Qcc8#) 53. Rc5 {[%emt 0:00:05]} e5 {[%emt 0:00:00]} 54. Rc7 {[%emt 0:00:03]} Kg6 {[%emt 0:00:00]} (54... Rf4 $142 55. Rc6+ Kf5 56. Kh2 g4 57. Kh1 Rf1+ 58. Kh2 e4 59. Kg2 Rf3 60. Rh6 e3 61. Rh7 Kg6 62. Rh8 Kg5 63. Ra8 f5 64. Ra5 Rf2+ 65. Kg3 Rf1 66. Re5 Rf3+ 67. Kh2 Kh4 68. Kg1 f4 69. Re4 Rf2 70. Re7 Kg3 71. Rb7 e2 72. Rb3+ f3 73. Rb1 Rg2+ 74. Kh1 Rh2+ 75. Kg1 f2#) 55. Rc6+ {[%emt 0:00:16]} Kf5 {[%emt 0:00:00] Black mates.} 56. Rc7 {[%emt 0:00:02]} Ra3+ {[%emt 0:00:00]} 57. Kf2 {[%emt 0:00:02]} f6 {[%emt 0:00:00][%cal Bf7f6,Bf6f5,Bf5f4][%mdl 32]} 58. Rc4 {[%emt 0:00:01]} e4 {[%emt 0:00:00]} 59. Rc5+ {[%emt 0:00:03]} Kf4 {[%emt 0:00:00]} 60. Rc2 {[%emt 0:00:01]} f5 {[%emt 0:00:00]} 61. Ke2 {[%emt 0:00:05]} Rh3 {[%emt 0:00:00]} 62. Rc5 {[%emt 0:00:02]} Rh2+ {[%emt 0:00:00]} 63. Kf1 {[%emt 0:00:02]} Kg4 {[%emt 0:00:00]} 64. Kg1 {[%emt 0:00:03]} Ra2 {[%emt 0:00:00]} 65. Rc3 {[%emt 0:00:02]} f4 {[%emt 0:00:00]} 66. Kf1 {[%emt 0:00:03]} e3 {[%emt 0:00:00]} 67. Ke1 {[%emt 0:00:02]} Kf3 {[%emt 0:00:00]} 68. Rc1 {[%emt 0:00:06]} g4 {[%emt 0:00:00][%cal Bg5g4,Bg4g3][%mdl 32]} 69. Kf1 {[%emt 0:00:04]} g3 {[%emt 0:00:00]} 70. Re1 {[%emt 0:00:49]} Rf2+ {[%emt 0:02:30]} 71. Kg1 {[%emt 0:00:00]} e2 {[%emt 0:00:00]} 72. Kh1 {[%emt 0:00:00]} Rf1+ {[%emt 0:00:00]} 73. Rxf1+ {[%emt 0:00:00]} exf1=R# {[%emt 0:00:00] Weighted Error Value: White=0.69/Black=0.17 (very precise)} 0-1

[Event "Romanian Rapid Open 2022"]
[Site "Sebes"]
[Date "2022.12.02"]
[Round "7.1"]
[White "Gavrilescu, David"]
[Black "Miron, Lucian-Costin"]
[Result "1-0"]
[ECO "C28"]
[WhiteElo "2523"]
[BlackElo "2510"]
[Annotator "TA"]
[PlyCount "87"]
[EventDate "2022.12.02"]
[EventType "rapid"]
[EventCountry "ROU"]
[SourceTitle "playchess.com"]
[Source "ChessBase"]
[SourceQuality "1"]
[TimeControl "600+5"]

{[%evp 9,87,0,0,0,0,0,0,0,0,-17,-16,-40,-56,-38,0,-15,0,-14,49,11,38,30,15,35,64,59,61,39,75,63,62,75,57,44,141,100,113,41,77,-24,0,-276,85,34,101,76,70,62,64,68,137,35,40,47,142,95,173,165,163,151,168,143,167,148,273,257,589,577,590,584,593,587,586,558,871,817,824,811,968,764]} 1. e4 {[%emt 0:00:02]} e5 {[%emt 0:00:15]} 2. Bc4 {[%emt 0:00:30]} Nf6 {[%emt 0:00:03]} 3. d3 {[%emt 0:00:01]} Nc6 {[%emt 0:00:02]} 4. Nc3 {[%emt 0:00:02]} Na5 {[%emt 0:00:01]} 5. Qf3 {[%emt 0:00:02]} c6 {[%emt 0:00:21]} 6. Nge2 {[%emt 0:00:02] C28: Vienna Game: 2...Nf6 3 Bc4 Nc6.} b5 {[%emt 0:00:20]} 7. Bb3 {[%emt 0:00:02]} d6 {[%emt 0:00:02]} 8. h3 {[%emt 0:00:18] The position is equal.} Be7 {[%emt 0:00:13]} 9. Be3 {[%emt 0:01:04]} O-O {[%emt 0:00:15]} 10. g4 {[%emt 0:00:27][%cal Bg2g4,Bg4g5][%mdl 32]} Nxb3 {[%emt 0:02:32]} (10... Bb7 {keeps more tension.} 11. g5 Nd7 12. h4 Nb6) 11. axb3 {[%emt 0:00:01]} a6 {[%emt 0:00:01]} 12. Ng3 {[%emt 0:00:18] [#]} (12. g5 $5 {[%cal Rg5f6]} Nd7 13. Qg2 $11) 12... Be6 $146 {[%emt 0:00:06]} (12... a5 {simplifies} 13. Nf5 Bxf5 14. gxf5 Kh8) ({Predecessor:} 12... Ne8 13. Nf5 Bg5 14. Bxg5 Qxg5 15. h4 Qf6 16. b4 Bxf5 17. g5 Bg4 18. Qxg4 {½-½ (49) Heinemann,E (2167)-Doerge,S (1905) Verden 2004}) 13. Nf5 {[%emt 0:00:22]} d5 {[%emt 0:02:01]} (13... Bxf5 $11 14. gxf5 d5) 14. g5 {[%emt 0:01:48]} (14. Nxe7+ {simplifies} Qxe7 15. Bg5 Rfc8 16. Bxf6 Qxf6 17. Qxf6 gxf6 18. exd5 cxd5 19. Kd2) 14... Ne8 {[%emt 0:01:45]} 15. exd5 {[%emt 0:01:54]} Bxf5 {[%emt 0:00:13]} 16. Qxf5 {[%emt 0:00:01]} b4 {[%emt 0:03:15]} 17. Na4 {[%emt 0:04:36][%cal Bc3a4,Ba4b6,Bb6c4][%mdl 32] And now Nb6 would win.} Qxd5 {[%emt 0:00:00]} 18. Qe4 {[%emt 0:00:00]} Qb5 {[%emt 0:00:00]} (18... Nd6 $2 19. Qxd5 cxd5 20. Nb6 $18) 19. Nb6 {[%emt 0:00:00]} (19. h4 {simplifies} f5 20. Qc4+ Qxc4 21. dxc4 Nc7 22. Bc5) 19... Rd8 {[%emt 0:00:00]} 20. Nc4 {[%emt 0:00:00]} (20. f4 exf4 21. Qxf4 (21. Qxe7 Nd6 $17) 21... Bd6 $11) (20. Qg4 $5 {[%cal Rb6c4]}) 20... Nd6 {[%emt 0:00:00]} 21. Qxe5 {[%emt 0:00:00]} Qb7 {[%emt 0:00:00]} (21... Nxc4 $14 22. Qxb5 (22. Qxe7 Nxe3 23. fxe3 Rfe8 $15) 22... axb5 23. dxc4 (23. bxc4 bxc4 24. dxc4 f5 $16) 23... f6) 22. Bd4 {[%emt 0:00:00][%csl Gd4][%cal Re5g7] White has more active pieces.} Nf5 {[%emt 0:00:00][%mdl 64] [#]} 23. Bb6 {[%emt 0:00:00]} (23. Qxf5 $16 Rxd4 24. f4) 23... Rd5 $14 {[%emt 0:00:12]} 24. Qf4 {[%emt 0:00:00]} ({White should play} 24. Qc7 $16 Qxc7 25. Bxc7) 24... Nd6 {[%emt 0:00:04] Threatens to win with ...c5.} (24... c5 $5 {[%cal Rd5d4]} 25. Qe4 Qd7 $11) 25. h4 $2 {[%emt 0:00:00][%mdl 8192] [#]} (25. Be3 $11 {and White is okay.}) 25... Nxc4 $2 {[%emt 0:00:13]} (25... c5 $1 $19 26. O-O-O Rd4) 26. bxc4 {[%emt 0:00:00]} (26. dxc4 $16 Bd6 27. Qf3 Re8+ 28. Be3) 26... Bd6 {[%emt 0:00:03]} (26... Rd7 $1 $14 27. c5 b3) 27. Qf3 $36 {[%emt 0:00:00][%mdl 2048] White is on the roll.} Re5+ {[%emt 0:00:09]} 28. Be3 {[%emt 0:00:00]} Rfe8 {[%emt 0:00:06]} 29. Kd2 {[%emt 0:00:00][%cal Be1d2,Bd2c1,Bc1b2][%mdl 32]} (29. Kd1 {is more complex.} b3 30. c3 g6 31. h5) 29... R5e6 {[%emt 0:00:03]} ({Better is} 29... g6 $14) 30. Rhe1 {[%emt 0:00:00]} (30. h5 $16) 30... Be5 $1 {[%emt 0:00:02]} 31. d4 {[%emt 0:00:00]} Bd6 {[%emt 0:00:05]} (31... Rd8 $14) 32. b3 {[%emt 0:00:00]} (32. Rg1 $142) 32... Qd7 {[%emt 0:00:08]} (32... Re4 $16 {is a better defense.}) 33. Kc1 {[%emt 0:00:20]} (33. Rxa6 $6 Bc5 $16) 33... Qc8 {[%emt 0:00:13]} 34. Kb2 {[%emt 0:00:03] Prevents f5.} c5 {[%emt 0:00:05]} 35. Red1 {[%emt 0:00:05]} cxd4 {[%emt 0:00:02]} 36. Bxd4 {[%emt 0:00:01]} Re2 {[%emt 0:00:02]} (36... Bc7 $16 37. Rd3 Re4) 37. Bxg7 $18 {[%emt 0:00:11] Dancing on a razor blade.} Kxg7 $2 {[%emt 0:00:03]} (37... Qe6) 38. Rxd6 {[%emt 0:00:01] White is clearly winning.} Qc5 {[%emt 0:00:01]} 39. Qf6+ {[%emt 0:00:50]} ({Not} 39. Raxa6 Qe5+ 40. Kc1 Re1+ 41. Kd2 (41. Rd1 $2 Rxd1+ 42. Qxd1 Qc3 $19) 41... Kg8 $11) (39. Rdxa6 $2 {is a self mate.} Qd4+ 40. Kc1 Re1+) (39. Rd7 $2 Qe5+ 40. Kb1 Re1+ 41. Rd1 Rxd1+ 42. Qxd1 Qc3 43. Rxa6 Re1 $19) 39... Kg8 {[%emt 0:00:00]} 40. Rd8 {[%emt 0:00:01]} Rxd8 {[%emt 0:00:29]} 41. Qxd8+ {[%emt 0:00:01]} Kg7 {[%emt 0:00:00] ( -> ...Qe5+)} 42. Qf6+ {[%emt 0:00:01]} (42. Rxa6 {leads to mate.} Qe5+ 43. Kc1 Re1+) 42... Kg8 {[%emt 0:00:00]} 43. Rxa6 {[%emt 0:00:02] aiming for Ra8+.} Re8 {[%emt 0:00:03] Inhibits Ra8.} 44. h5 {[%emt 0:00:06] Weighted Error Value: White=0.32/Black=0.58} 1-0

[Event "Romanian Rapid Open 2022"]
[Site "Sebes"]
[Date "2022.12.02"]
[Round "7.2"]
[White "Nevednichy, Vladislav"]
[Black "Stoleriu, George"]
[Result "1-0"]
[ECO "B12"]
[WhiteElo "2499"]
[BlackElo "2389"]
[Annotator "TA"]
[PlyCount "96"]
[EventDate "2022.12.02"]
[EventType "rapid"]
[EventCountry "ROU"]
[SourceTitle "playchess.com"]
[Source "ChessBase"]
[SourceQuality "1"]
[TimeControl "600+5"]

{[%evp 13,96,37,38,0,9,6,27,26,12,12,10,25,17,26,29,-24,0,0,0,0,25,27,23,0,56,58,143,115,168,158,145,110,120,117,181,197,172,121,133,168,300,295,979,154,128,125,141,12,45,45,47,36,38,38,38,8,30,30,30,30,39,16,30,38,44,41,56,50,52,22,41,31,50,50,50,37,54,54,103,100,260,252,232,214,287]} 1. e4 {[%emt 0:00:01]} c6 {[%emt 0:00:01]} 2. d4 {[%emt 0:00:03]} d5 {[%emt 0:00:01]} 3. e5 {[%emt 0:00:00]} Bf5 {[%emt 0:00:00]} 4. h4 {[%emt 0:00:03]} h5 {[%emt 0:00:02]} 5. c4 {[%emt 0:00:14]} e6 {[%emt 0:00:11]} 6. Nc3 {[%emt 0:00:01]} Nd7 {[%emt 0:00:32]} 7. cxd5 {[%emt 0:00:10]} cxd5 {[%emt 0:00:16]} 8. Qb3 {[%emt 0:00:36] B12: Caro-Kann: Advance Variation.} Qb6 {[%emt 0:00:18]} 9. Bb5 {[%emt 0:00:27]} Ne7 {[%emt 0:01:24]} 10. Na4 $1 {[%emt 0:00:25] White has an edge.} Qc7 {[%emt 0:00:04]} (10... Qxd4 $2 11. Ne2 $18) 11. Bd2 {[%emt 0:03:29]} Nc6 {[%emt 0:00:08]} 12. Rc1 {[%emt 0:00:03] [#]} Be7 $146 {[%emt 0:00:34]} ({Predecessor:} 12... a6 13. Bxc6 bxc6 14. Nf3 {½-½ (14) Hjartarson,J (2585)-Khalifman,A (2645) Tilburg 1994}) 13. Ne2 {[%emt 0:00:25]} Rc8 {[%emt 0:00:14]} 14. Nf4 {[%emt 0:01:18]} (14. Qg3 $142) 14... Qd8 {[%emt 0:00:23]} (14... Qb8 {simplifies} 15. Bxc6 Rxc6 16. Rxc6 bxc6 17. Qxb8+ Nxb8 18. f3 Nd7) 15. Bxc6 {[%emt 0:00:12]} bxc6 {[%emt 0:00:01]} 16. Bb4 {[%emt 0:00:34]} Rb8 {[%emt 0:00:42]} 17. Bxe7 {[%emt 0:00:04]} Qxe7 {[%emt 0:00:01]} 18. Qc3 {[%emt 0:00:17]} Qb4 {[%emt 0:01:55]} (18... f6 $11) 19. b3 $1 $14 {[%emt 0:00:23]} g6 {[%emt 0:03:22]} ({Better is} 19... O-O $14) 20. Ne2 {[%emt 0:00:25]} O-O {[%emt 0:00:35]} (20... Qxc3+ $16 21. Rxc3 Nb6) 21. Qxb4 $18 {[%emt 0:00:50]} Rxb4 {[%emt 0:00:01]} 22. Kd2 {[%emt 0:00:10] Inhibits Bd3.} f6 {[%emt 0:00:44]} 23. exf6 {[%emt 0:00:02]} e5 {[%emt 0:00:06]} (23... Rc8 $16) 24. Rxc6 {[%emt 0:00:32]} exd4 {[%emt 0:00:06]} 25. f3 {[%emt 0:00:36]} (25. Nf4 $18) 25... Ne5 $16 {[%emt 0:00:03]} 26. Ra6 {[%emt 0:00:13]} Bd3 {[%emt 0:00:21]} (26... Rc8 {might work better.} 27. Rc1 Rxc1 28. Kxc1 Kf7 29. Rxa7+ Kxf6 30. Ra6+ Kf7) 27. Re6 $18 {[%emt 0:00:32]} (27. Rxa7 Bxe2 28. Kxe2 Rxf6 $18) 27... Nc4+ $2 {[%emt 0:00:07]} (27... Nd7 28. Kxd3 Rxa4 29. bxa4 Nc5+ 30. Kxd4 Nxe6+ 31. Kxd5 Rxf6) 28. bxc4 $2 {[%emt 0:00:02]} (28. Kxd3 $18 {and the rest is easy.} Ne3 29. Nf4) 28... Bxc4 {[%emt 0:00:02] [#]} 29. Nxd4 $1 {[%emt 0:00:04]} Rxa4 {[%emt 0:00:02]} 30. Rhe1 {[%emt 0:00:13]} (30. Rc1 $16) 30... Rxa2+ {[%emt 0:00:03]} ({Much less strong is} 30... Bxa2 31. Ke3 $18) (30... Ra3 $5 {[%cal Ra3d3]} 31. Nc2 Rxa2 $11) 31. Ke3 {[%emt 0:00:03] aiming for Kf4.} Ra6 $1 {[%emt 0:00:08]} 32. Rxa6 {[%emt 0:00:03]} Bxa6 $14 {[%emt 0:00:01][%mdl 4096] Endgame KRB-KRN} 33. Kf4 {[%emt 0:00:04] Threatens to win with Kg5.} Rxf6+ {[%emt 0:00:07]} 34. Ke5 {[%emt 0:00:03]} (34. Kg5 $5 {[%cal Rg5f6]} Rb6 35. Ra1 $14) 34... Kf7 {[%emt 0:00:04]} 35. Ra1 {[%emt 0:00:02]} Rb6 {[%emt 0:00:06]} 36. Ra5 {[%emt 0:00:02]} Ke7 {[%emt 0:00:06]} 37. Rc5 {[%emt 0:00:03]} Kd7 {[%emt 0:00:05] Against Rc7+} 38. Rxd5+ {[%emt 0:00:02]} Ke7 {[%emt 0:00:03]} 39. Ra5 {[%emt 0:00:03]} Kd7 {[%emt 0:00:05]} 40. Kf4 {[%emt 0:00:07]} Kc7 {[%emt 0:00:13]} 41. Rc5+ {[%emt 0:00:08]} Kb7 {[%emt 0:00:01]} 42. Re5 {[%emt 0:00:01]} Bf1 {[%emt 0:00:07]} 43. g4 {[%emt 0:00:03]} hxg4 $1 {[%emt 0:00:02]} 44. fxg4 {[%emt 0:00:01]} Rb4 {[%emt 0:00:03]} 45. Ke3 {[%emt 0:00:02]} Bc4 {[%emt 0:00:12] [#]} (45... Rb6 $14) 46. Re7+ $1 $16 {[%emt 0:00:03]} Kb6 $2 {[%emt 0:00:00] [#]} (46... Ka8 $16 {was worth a try.}) 47. Rg7 $1 $18 {[%emt 0:00:02]} Kc5 {[%emt 0:00:03]} 48. Rxg6 {[%emt 0:00:02]} Bd5 {[%emt 0:00:01] Weighted Error Value: White=0.25 (precise) /Black=0.25 (precise)} 1-0